bitfinex/quotes_ETHUSD_20250504
["timestamp","ask_amount","ask_price","bid_price","bid_amount"]
[1746336406074,6.21243095,1848.9,1848.5,5.40965368]
[1746336406276,6.21243095,1848.9,1848.5,6.03230905]
[1746336406497,6.21243095,1848.9,1848.6,0.20065855]
[1746336407466,6.21243095,1848.9,1848.4,6.22683867]
[1746336407782,5.40892641,1848.8,1848.5,0.20113788]
[1746336408649,6.21235612,1848.9,1848.4,5.41007962]
[1746336408980,5.40906617,1848.8,1848.5,0.20113788]
[1746336409180,6.18209908,1848.6,1848.5,0.20113788]
[1746336409482,5.40980536,1848.5,1848.1,11.48930533]
[1746336409691,0.7726,1848.6,1848.1,11.48930533]
[1746336409692,0.7726,1849.0,1848.3,0.8164]
[1746336409984,6.18106155,1849.0,1848.5,5.40955152]
[1746336410184,6.1810567,1849.0,1848.6,0.54095515]
[1746336410350,6.1810567,1849.0,1848.5,5.40964397]
[1746336410550,5.40866529,1848.9,1848.5,5.40964397]
[1746336410883,0.7726,1849.0,1848.4,10.67192907]
[1746336410884,11.58967424,1849.0,1848.4,10.67192907]
[1746336411187,6.18109605,1849.0,1848.6,5.40944913]
[1746336411483,6.18109605,1849.0,1848.4,10.67195581]
[1746336411484,5.40892072,1848.8,1848.4,10.67195581]
[1746336411672,5.40880312,1848.9,1848.4,17.771663]
[1746336411887,5.40880312,1848.9,1848.4,12.36170719]
[1746336412077,5.40880312,1848.9,1848.5,5.4096617]
[1746336412279,5.40880312,1848.9,1848.5,5.40960211]
[1746336412464,6.1811017,1849.0,1848.5,5.46364347]
[1746336412793,5.40862152,1848.9,1848.5,6.12499314]
[1746336413476,5.40862152,1848.9,1848.5,0.71534959]
[1746336413792,5.40931292,1848.7,1848.3,6.2266311]
[1746336414178,5.40979243,1848.5,1848.2,5.262]
[1746336414482,0.8306,1848.6,1848.3,5.61247088]
[1746336414686,6.23964276,1848.8,1848.3,0.20222718]
[1746336414858,5.40927604,1848.7,1848.3,5.61246408]
[1746336415052,5.40927604,1848.7,1848.3,7.24637091]
[1746336415878,5.40926098,1848.7,1848.3,7.30046795]
[1746336416102,5.40926098,1848.7,1848.3,7.24637091]
[1746336416272,6.23964767,1848.8,1848.3,7.30038106]
[1746336416472,11.64885295,1848.8,1848.3,5.66647423]
[1746336416657,11.64885295,1848.8,1848.3,5.61237718]
[1746336416860,5.40999763,1848.5,1848.3,0.20222718]
[1746336417059,5.41008439,1848.4,1848.0,10.67314261]
[1746336417259,5.41008439,1848.4,1848.1,0.20377348]
[1746336417456,0.8306,1849.2,1848.2,6.8885]
[1746336417660,5.40804082,1849.1,1848.7,5.40907703]
[1746336417860,0.8306,1849.2,1848.9,5.40843288]
[1746336418060,5.40745962,1849.3,1849.0,0.19959005]
[1746336418289,5.40768584,1849.3,1849.0,0.19959005]
[1746336418599,6.02538442,1849.3,1848.9,5.40859992]
[1746336418890,0.61769858,1849.3,1849.0,0.19959005]
[1746336419091,6.17656966,1849.4,1849.0,5.60790516]
[1746336419299,0.7693,1849.4,1849.0,5.60774382]
[1746336419662,6.17646936,1849.4,1849.0,5.60774382]
[1746336419896,0.7693,1849.4,1849.0,5.60773243]
[1746336420497,5.40644318,1849.7,1849.2,5.40753696]
[1746336420793,5.40701493,1849.5,1849.3,0.19632645]
[1746336420985,5.40715907,1849.4,1849.0,5.40817874]
[1746336421181,0.7693,1849.7,1849.1,5.6592112]
[1746336421182,5.40673792,1849.6,1849.1,5.6592112]
[1746336421390,5.40673792,1849.6,1849.1,0.19728443]
[1746336421591,5.40703863,1849.5,1849.1,0.19728443]
[1746336422084,5.40703863,1849.5,1849.1,5.60524165]
[1746336422265,5.40703863,1849.5,1849.1,0.19728443]
[1746336422467,5.40727785,1849.4,1849.1,0.19728443]
[1746336422663,6.17657785,1849.4,1849.1,0.19728443]
[1746336422997,6.17657785,1849.4,1849.2,0.19680541]
[1746336423167,0.7693,1849.4,1849.0,5.40819075]
[1746336423363,6.20057301,1849.6,1849.1,11.01304022]
[1746336423576,1.95449889,1849.6,1849.3,5.40731262]
[1746336423805,5.40641918,1849.7,1849.4,0.19584754]
[1746336424099,11.5830084,1849.8,1849.4,0.19584754]
[1746336424308,5.40835762,1849.0,1848.5,8.97238056]
[1746336424605,0.05406975,1849.1,1848.7,5.40891399]
[1746336424894,6.23222912,1849.3,1848.8,5.94960722]
[1746336425100,5.40726003,1849.4,1849.0,0.8156]
[1746336425298,5.46125323,1849.4,1849.0,0.8156]
[1746336426060,5.4074648,1849.3,1849.0,0.8156]
[1746336426701,5.46125323,1849.4,1849.0,0.8156]
[1746336427199,5.40718348,1849.4,1849.0,0.8156]
[1746336427566,5.40718348,1849.4,1849.0,6.22389654]
[1746336429212,10.81461599,1849.4,1849.0,0.8156]
[1746336429504,5.40749281,1849.3,1849.0,0.8156]
[1746336431303,5.40780078,1849.2,1849.0,0.8156]
[1746336431503,5.40780078,1849.2,1848.8,6.70997892]
[1746336431710,5.40780078,1849.2,1848.9,0.83360091]
[1746336432598,5.46170069,1849.3,1848.9,6.2421094]
[1746336432974,5.46170069,1849.3,1848.9,0.83360091]
[1746336433206,5.40787206,1849.2,1848.9,0.83360091]
[1746336434181,5.40787206,1849.2,1848.9,0.16260302]
[1746336434415,5.40762734,1849.3,1848.9,0.16260302]
[1746336434600,10.81532285,1849.3,1848.9,0.16260302]
[1746336434793,5.40762734,1849.3,1848.9,0.16260302]
[1746336435979,5.40785608,1849.2,1848.9,0.16260302]
[1746336436397,5.40832882,1849.0,1848.9,0.16260302]
[1746336436777,10.81694697,1849.0,1848.7,5.261]
[1746336436976,5.40832882,1849.0,1848.9,0.16260302]
[1746336437218,5.40832882,1849.0,1848.7,5.261]
[1746336437377,5.40895148,1848.8,1848.6,6.11]
[1746336437576,0.7678,1849.1,1848.6,6.11]
[1746336437809,5.40910576,1848.8,1848.6,6.11]
[1746336438013,5.40920646,1848.7,1848.6,6.11]
[1746336438228,6.54493043,1848.8,1848.5,3.56272676]
[1746336438404,5.40932978,1848.7,1848.5,3.56272676]
[1746336438720,5.40920646,1848.7,1848.5,3.56272676]
[1746336438899,5.46356883,1848.6,1848.5,3.56272676]
[1746336439231,5.40949908,1848.6,1848.5,3.56272676]
[1746336439401,5.40949908,1848.6,1848.3,5.236]
[1746336439402,5.40949908,1848.6,1848.3,8.79872676]
[1746336439611,5.40981462,1848.5,1848.3,8.79872676]
[1746336440582,0.05406975,1848.7,1848.3,4.57515737]
[1746336440800,5.40920713,1848.7,1848.3,9.98536026]
[1746336441007,0.05406975,1848.8,1848.4,0.7846]
[1746336441207,5.40893718,1848.8,1848.4,0.7846]
[1746336441518,5.40893718,1848.8,1848.4,6.19459925]
[1746336441698,5.40893718,1848.8,1848.4,7.80720005]
[1746336442091,6.16507194,1849.0,1848.4,7.80706501]
[1746336442092,5.40878676,1848.9,1848.4,7.80706501]
[1746336443026,10.81769737,1848.9,1848.4,7.75706501]
[1746336443226,5.4076773,1849.3,1848.8,5.40891026]
[1746336443426,5.46174705,1849.3,1848.8,5.40891026]
[1746336444121,0.05406975,1849.3,1848.7,5.81734913]
[1746336444336,0.05406975,1849.3,1848.8,0.16513103]
[1746336444508,5.46155334,1849.3,1848.9,5.40845481]
[1746336444690,6.08336867,1849.3,1849.0,0.16417274]
[1746336445495,5.40777242,1849.2,1849.0,0.16417274]
[1746336445709,5.40777242,1849.2,1848.8,5.40873425]
[1746336445934,5.40777242,1849.2,1848.9,0.16465186]
[1746336446107,5.40777242,1849.2,1848.9,0.94925186]
[1746336447141,0.67588508,1849.3,1848.9,6.35772139]
[1746336447302,5.40763878,1849.3,1848.9,6.35772139]
[1746336447497,5.40763878,1849.3,1848.9,0.94925186]
[1746336447808,5.40732772,1849.4,1848.9,0.94925186]
[1746336448127,5.40755639,1849.3,1848.9,6.35763679]
[1746336448833,5.40732772,1849.4,1849.0,5.4081934]
[1746336449339,5.40732772,1849.4,1849.1,0.16453907]
[1746336450040,5.40675805,1849.6,1849.2,6.19055987]
[1746336450346,5.40675805,1849.6,1849.3,0.16153219]
[1746336450532,5.40650545,1849.7,1849.3,0.21560031]
[1746336450840,5.40650545,1849.7,1849.3,5.62305022]
[1746336451041,0.84986975,1849.8,1849.3,0.21560031]
[1746336451243,5.40703416,1849.5,1849.3,0.16153219]
[1746336451448,5.46110391,1849.5,1849.3,0.16153219]
[1746336452511,5.40715907,1849.4,1849.3,0.16153219]
[1746336452709,5.40715907,1849.4,1849.0,0.783]
[1746336452905,5.4616672,1849.3,1849.1,0.16249017]
[1746336453106,5.40774388,1849.2,1849.1,0.16249017]
[1746336453310,5.40826154,1849.1,1848.8,4.34312676]
[1746336453545,5.46233129,1849.1,1848.9,0.1630582]
[1746336453747,5.40832882,1849.0,1848.9,0.1630582]
[1746336454620,5.46239857,1849.0,1848.9,0.1630582]
[1746336454940,5.40886061,1848.9,1848.5,0.7804]
[1746336455112,5.40886061,1848.9,1848.5,0.83449016]
[1746336455313,5.40924736,1848.7,1848.5,0.7804]
[1746336455624,5.40909893,1848.8,1848.5,0.7804]
[1746336456713,5.40907628,1848.8,1848.5,0.7804]
[1746336457115,0.05406975,1848.7,1848.2,4.34312676]
[1746336457319,5.40993838,1848.5,1848.2,4.34312676]
[1746336458320,5.46373319,1848.6,1848.2,4.34312676]
[1746336458653,5.40993866,1848.5,1848.2,4.34312676]
[1746336459341,5.40993866,1848.5,1848.2,0.7804]
[1746336459546,5.41009975,1848.4,1848.2,0.7804]
[1746336459865,5.46401252,1848.5,1848.2,0.7804]
[1746336460424,5.41078109,1848.2,1847.9,5.00965326]
[1746336460624,5.41078109,1848.2,1847.9,4.72670649]
[1746336461024,5.41096261,1848.1,1848.0,0.16938897]
[1746336461259,5.46503236,1848.1,1848.0,0.16938897]
[1746336462258,10.87628343,1848.1,1847.8,3.56272676]
[1746336462453,6.5526607,1848.1,1848.0,0.16938897]
[1746336462643,6.49859095,1848.1,1847.9,0.16986861]
[1746336462839,5.41098063,1848.1,1848.0,0.17293522]
[1746336463345,5.46486685,1848.2,1848.0,0.17485528]
[1746336463548,5.4107971,1848.2,1847.8,8.97444751]
[1746336463723,5.46486685,1848.2,1848.1,0.17437569]
[1746336463923,5.46486685,1848.2,1847.8,3.56272676]
[1746336464162,5.41020312,1848.4,1847.9,0.98093492]
[1746336464362,5.41048902,1848.3,1847.9,0.98093492]
[1746336464600,5.46489373,1848.2,1847.9,0.98093492]
[1746336465094,5.41096261,1848.1,1847.9,0.17533492]
[1746336465468,6.25481355,1848.2,1847.8,3.56272676]
[1746336465664,5.41100859,1848.1,1848.0,0.17433446]
[1746336465871,5.41100859,1848.1,1847.9,0.1748141]
[1746336466081,5.41100859,1848.1,1848.0,0.17433446]
[1746336466480,5.41016715,1848.4,1847.8,5.41164298]
[1746336466481,10.8211899,1848.3,1847.8,5.41164298]
[1746336466685,5.41072309,1848.2,1848.0,0.17433446]
[1746336466972,6.49284746,1848.2,1848.1,0.17385488]
[1746336467188,1.08212437,1848.2,1847.8,5.41170736]
[1746336467362,5.41058852,1848.3,1847.9,0.1748141]
[1746336467563,5.41077572,1848.2,1847.8,5.41164888]
[1746336467766,5.41077572,1848.2,1847.9,0.17510705]
[1746336468094,5.41077572,1848.2,1847.8,5.41164888]
[1746336468095,5.46484547,1848.2,1847.8,5.41164888]
[1746336468395,5.46484547,1848.2,1847.9,0.17510705]
[1746336468701,5.46484547,1848.2,1847.8,5.41164888]
[1746336468872,5.46484547,1848.2,1848.0,0.17462741]
[1746336469057,5.46484547,1848.2,1847.9,0.17510705]
[1746336469258,5.46484547,1848.2,1848.1,0.17414782]
[1746336469477,6.55237122,1848.2,1848.0,0.17462741]
[1746336469692,7.34227122,1848.2,1848.1,0.17414782]
[1746336470054,5.41184695,1847.8,1847.5,6.0426]
[1746336470493,5.41184695,1847.8,1847.6,0.12401648]
[1746336470694,5.41184695,1847.8,1847.6,0.16984981]
[1746336471292,6.49959408,1847.8,1847.6,0.16984981]
[1746336471494,5.412134,1847.7,1847.6,0.16984981]
[1746336471703,5.46620375,1847.7,1847.6,0.16984981]
[1746336471867,5.46639307,1847.7,1847.3,8.97582432]
[1746336472195,5.46604075,1847.8,1847.4,5.46713565]
[1746336472402,5.411971,1847.8,1847.5,0.9765805]
[1746336472603,9.25567303,1847.9,1847.5,0.9765805]
[1746336472784,5.41185945,1847.8,1847.5,0.9765805]
[1746336472992,5.4119012,1847.8,1847.5,0.9765805]
[1746336473383,5.46597095,1847.8,1847.5,0.9765805]
[1746336473567,9.2557063,1847.9,1847.5,0.9765805]
[1746336473763,5.41189874,1847.8,1847.5,0.9765805]
[1746336474592,5.46596849,1847.8,1847.5,0.9765805]
[1746336476205,5.41227131,1847.7,1847.5,0.9765805]
[1746336476398,5.466021,1847.8,1847.5,0.1709805]
[1746336476704,5.466021,1847.8,1847.2,11.34196614]
[1746336476705,5.41248324,1847.6,1847.2,11.34196614]
[1746336476907,5.46655299,1847.6,1847.2,11.34196614]
[1746336477788,5.41248324,1847.6,1847.2,11.34196614]
[1746336477994,5.46655299,1847.6,1847.3,0.17317734]
[1746336478188,5.41291557,1847.5,1847.3,0.17317734]
[1746336478390,6.00837419,1847.4,1847.3,0.17317734]
[1746336478703,5.41337797,1847.3,1847.0,0.8287]
[1746336479334,5.41403759,1847.1,1846.8,5.9527]
[1746336479602,5.41342806,1847.3,1846.8,11.42138165]
[1746336479812,5.41342806,1847.3,1846.8,11.36723946]
[1746336480022,0.05406975,1847.3,1846.8,13.4018315]
[1746336480183,0.05406975,1847.3,1846.9,5.41433198]
[1746336480370,0.05406975,1847.3,1847.0,5.41415957]
[1746336480572,0.05406975,1847.4,1847.1,5.41376445]
[1746336481405,0.05406975,1847.4,1847.0,5.41402092]
[1746336481604,6.09200224,1847.4,1846.9,10.82859927]
[1746336481808,6.09200224,1847.4,1847.0,5.41414493]
[1746336482115,6.09200224,1847.4,1847.0,5.41414007]
[1746336482408,0.67895722,1847.4,1847.1,5.41388985]
[1746336483110,0.67895722,1847.4,1847.1,5.41385552]
[1746336483331,0.67895722,1847.4,1847.0,5.41403441]
[1746336483609,0.05406975,1847.4,1847.0,5.41403441]
[1746336484104,0.05406975,1847.4,1847.1,5.41377285]
[1746336484404,6.24890684,1847.5,1847.0,5.41397701]
[1746336484773,6.24890684,1847.5,1847.0,10.82795266]
[1746336485079,6.24890684,1847.5,1847.0,5.41397565]
[1746336485411,7.41505187,1847.5,1847.1,5.41376405]
[1746336485593,7.41505187,1847.5,1847.0,5.41400247]
[1746336485908,7.41505187,1847.5,1847.1,5.41388508]
[1746336485909,6.24890684,1847.5,1847.1,5.41388508]
[1746336486083,0.83606975,1847.5,1847.1,5.41366537]
[1746336486283,5.46667855,1847.6,1847.2,5.41343013]
[1746336487120,5.41283566,1847.5,1847.0,5.4140221]
[1746336487285,5.4128751,1847.5,1847.1,5.41389047]
[1746336487479,5.46694485,1847.5,1847.1,5.41389047]
[1746336488123,5.4128751,1847.5,1847.1,5.41389047]
[1746336488686,5.4128751,1847.5,1847.1,6.00799538]
[1746336488888,8.46666438,1847.6,1847.1,11.42166946]
[1746336489085,0.8162,1847.7,1847.3,6.20106791]
[1746336489288,6.22845564,1847.7,1847.3,6.20106791]
[1746336489513,6.22845564,1847.7,1847.4,0.17670201]
[1746336489711,6.28252539,1847.7,1847.4,0.17670201]
[1746336489914,6.28252539,1847.7,1847.3,6.20106791]
[1746336490225,0.87026975,1847.7,1847.4,0.17670201]
[1746336490391,0.87026975,1847.7,1847.4,5.41289334]
[1746336490587,0.87026975,1847.7,1847.5,0.17622211]
[1746336490790,0.05406975,1847.7,1847.5,0.17622211]
[1746336491600,5.46620933,1847.7,1847.3,6.20117293]
[1746336491799,5.46620933,1847.7,1847.6,0.17574227]
[1746336492001,5.46620375,1847.7,1847.3,6.20110905]
[1746336492202,5.46620375,1847.7,1847.6,0.17574227]
[1746336492409,5.46620375,1847.7,1847.3,6.20110905]
[1746336492728,5.41291675,1847.5,1847.1,5.41389092]
[1746336492923,5.4669865,1847.5,1847.1,5.41389092]
[1746336494637,5.41301364,1847.4,1847.0,6.20213495]
[1746336494846,5.41303976,1847.4,1847.0,7.97460815]
[1746336495203,5.4133639,1847.3,1847.0,0.788]
[1746336496243,5.4133639,1847.3,1846.9,5.81499124]
[1746336496743,5.41318444,1847.4,1846.9,11.22923241]
[1746336497050,5.41318444,1847.4,1847.0,5.41405353]
[1746336497211,5.41318444,1847.4,1846.9,5.81475463]
[1746336497400,5.41324139,1847.4,1846.9,8.34012481]
[1746336497607,10.8805659,1847.4,1846.9,8.34012481]
[1746336497947,5.46731114,1847.4,1846.9,8.34012481]
[1746336498414,5.41341979,1847.3,1846.9,2.52537018]
[1746336498745,5.41341979,1847.3,1846.9,5.41439092]
[1746336499053,5.41343344,1847.3,1846.9,5.41445912]
[1746336499221,5.41343344,1847.3,1846.8,20.3256153]
[1746336499406,5.41343344,1847.3,1846.9,5.41446818]
[1746336501746,0.05406975,1847.2,1846.8,5.8798]
[1746336502057,0.05406975,1847.2,1846.8,5.124]
[1746336502058,5.41400876,1847.1,1846.8,5.124]
[1746336502459,5.46786041,1847.2,1846.8,10.53873768]
[1746336502963,6.99485539,1847.5,1846.8,10.53873768]
[1746336502964,6.22382752,1847.5,1847.0,0.7558]
[1746336503144,5.46726446,1847.4,1847.0,0.7558]
[1746336503565,5.46726446,1847.4,1847.0,6.16979712]
[1746336504484,5.46726446,1847.4,1847.1,0.17830483]
[1746336504781,5.46726446,1847.4,1847.1,0.17365811]
[1746336504946,6.63637366,1847.4,1847.1,0.17365811]
[1746336507338,1.22317895,1847.4,1847.1,0.17365811]
[1746336507538,6.63622405,1847.4,1847.1,0.17365811]
[1746336508159,5.41332811,1847.3,1847.1,0.17365811]
[1746336508864,5.41332811,1847.3,1846.9,5.41432626]
[1746336509054,5.46739786,1847.3,1847.0,0.17461827]
[1746336509249,10.8809595,1847.3,1847.0,0.17461827]
[1746336509579,5.41382274,1847.2,1847.0,0.17461827]
[1746336510070,5.41382274,1847.2,1846.8,6.6239775]
[1746336510265,5.46754304,1847.3,1847.1,0.17413816]
[1746336510473,5.41395938,1847.1,1846.8,0.795]
[1746336510678,0.05406975,1847.1,1846.7,5.024]
[1746336510883,5.46810823,1847.1,1846.7,10.43903529]
[1746336511170,5.41436196,1847.0,1846.7,5.024]
[1746336511484,0.7898,1846.8,1846.6,3.56272676]
[1746336511668,5.41407074,1847.1,1846.7,0.795]
[1746336511843,5.41348131,1847.3,1846.9,5.41437054]
[1746336512043,5.46755106,1847.3,1846.8,6.20957444]
[1746336512364,5.46755106,1847.3,1846.9,0.17578247]
[1746336512571,5.46755106,1847.3,1846.9,5.59011589]
[1746336513265,5.46737787,1847.3,1846.9,5.59011589]
[1746336514073,6.20302484,1847.4,1846.9,1.40989395]
[1746336514239,0.05406975,1847.3,1846.9,6.77007502]
[1746336514684,5.46738372,1847.3,1846.9,6.77007502]
[1746336515789,0.05406975,1847.3,1847.0,5.4141595]
[1746336516084,0.05406975,1847.3,1847.1,0.17478963]
[1746336516470,0.05406975,1847.3,1846.9,6.59429616]
[1746336516686,5.4673779,1847.3,1847.0,0.17526973]
[1746336517576,0.05406975,1847.3,1847.0,0.17526973]
[1746336517986,5.46738902,1847.3,1847.0,0.17526973]
[1746336518180,0.05406975,1847.3,1847.0,0.17526973]
[1746336518788,0.05406975,1847.3,1847.0,5.58945391]
[1746336519082,0.05406975,1847.3,1847.0,0.17526973]
[1746336519263,0.05406975,1847.3,1847.0,5.58944524]
[1746336520188,0.05406975,1847.3,1847.0,0.17526973]
[1746336520389,0.05406975,1847.3,1847.0,5.58941424]
[1746336520587,0.05406975,1847.3,1847.0,5.58944473]
[1746336523492,0.05406975,1847.3,1847.0,0.17526973]
[1746336523493,5.46738278,1847.3,1847.0,0.17526973]
[1746336523793,0.05406975,1847.3,1847.0,0.17526973]
[1746336524271,0.05406975,1847.3,1847.0,5.5894016]
[1746336524596,0.05406975,1847.3,1847.0,5.58924506]
[1746336524892,0.05406975,1847.3,1847.0,5.58926391]
[1746336525101,0.05406975,1847.3,1847.0,5.58924397]
[1746336527401,0.05406975,1847.3,1847.0,11.00328486]
[1746336527713,0.05406975,1847.3,1847.0,5.58924308]
[1746336527857,0.7552,1847.2,1847.0,5.58924308]
[1746336528196,5.46749752,1847.3,1847.0,0.17526973]
[1746336528367,6.08966349,1847.3,1847.0,0.17526973]
[1746336528757,0.6763395,1847.3,1847.0,0.17526973]
[1746336528957,6.08978376,1847.3,1847.0,0.17526973]
[1746336529887,0.7552,1847.4,1847.1,5.4137664]
[1746336530061,5.46711242,1847.4,1847.2,0.17284388]
[1746336530394,0.05406975,1847.4,1847.0,5.41395769]
[1746336530581,0.05406975,1847.4,1847.3,0.17236388]
[1746336530785,0.05406975,1847.4,1847.1,5.41387522]
[1746336531102,0.05406975,1847.4,1847.2,0.17284388]
[1746336531463,0.05406975,1847.4,1847.0,10.82803453]
[1746336531796,0.05406975,1847.4,1847.1,5.58721068]
[1746336534495,5.46709484,1847.4,1847.1,0.17332393]
[1746336534701,0.7808,1847.3,1847.1,0.17332393]
[1746336535598,0.83486975,1847.2,1847.1,0.17332393]
[1746336536700,6.24846871,1847.2,1846.9,3.56272676]
[1746336537005,6.24846871,1847.2,1847.0,0.17399945]
[1746336537168,5.41389204,1847.1,1847.0,0.17399945]
[1746336537668,5.46796179,1847.1,1847.0,0.17399945]
[1746336538099,6.63419787,1847.1,1847.0,0.17399945]
[1746336538302,7.41499787,1847.1,1847.0,0.17399945]
[1746336539922,5.41466828,1846.9,1846.7,3.56272676]
[1746336540241,6.24964124,1846.8,1846.7,3.56272676]
[1746336543434,5.41551937,1846.6,1846.4,3.56272676]
[1746336543722,5.41565123,1846.5,1846.4,3.56272676]
[1746336543885,6.19645123,1846.5,1846.4,3.56272676]
[1746336544292,7.36304039,1846.5,1846.4,3.56272676]
[1746336544491,7.41711014,1846.5,1846.4,3.56272676]
[1746336545107,5.41522407,1846.7,1846.4,3.56272676]
[1746336545108,0.05406975,1846.6,1846.4,3.56272676]
[1746336545425,0.05406975,1846.6,1846.4,9.75919731]
[1746336545594,5.41492622,1846.8,1846.4,9.75919731]
[1746336545595,0.05406975,1846.7,1846.4,9.75919731]
[1746336545801,0.05406975,1846.8,1846.4,9.75912439]
[1746336546000,0.05406975,1846.8,1846.4,9.75916339]
[1746336546325,0.05406975,1846.8,1846.5,5.4155198]
[1746336546828,6.24937034,1846.9,1846.5,5.4155198]
[1746336547119,0.05406975,1846.9,1846.6,5.31533427]
[1746336547519,0.05406975,1847.0,1846.7,5.41503697]
[1746336547719,0.05406975,1847.0,1846.6,5.41518558]
[1746336547927,0.05406975,1847.0,1846.6,5.41513516]
[1746336548228,0.05406975,1847.1,1846.8,6.16645666]
[1746336549232,0.05406975,1847.2,1846.8,11.58100586]
[1746336549448,0.05406975,1847.2,1846.9,0.17640144]
[1746336549729,0.05406975,1847.2,1846.9,5.5907371]
[1746336550137,0.05406975,1847.2,1846.9,0.17640144]
[1746336550433,5.46785991,1847.2,1846.9,0.17640144]
[1746336550604,6.63361841,1847.2,1846.9,0.17640144]
[1746336551131,1.21982825,1847.2,1846.9,5.59084159]
[1746336551338,0.05406975,1847.2,1846.9,5.59084159]
[1746336551537,0.05406975,1847.2,1846.9,0.17640144]
[1746336551908,5.41403596,1847.1,1846.9,0.17640144]
[1746336552436,5.46810571,1847.1,1846.9,0.17640144]
[1746336552642,5.41418516,1847.0,1846.9,0.17640144]
[1746336552947,5.46814985,1847.1,1846.9,0.17640144]
[1746336553151,6.55633837,1847.1,1846.9,0.17640144]
[1746336553309,6.50226862,1847.1,1846.9,0.17640144]
[1746336553638,6.55633837,1847.1,1846.9,0.17640144]
[1746336553940,5.41449689,1846.9,1846.6,0.8024]
[1746336554238,5.46859902,1846.9,1846.5,4.923]
[1746336554429,6.09414892,1846.9,1846.5,4.923]
[1746336554626,5.4148988,1846.8,1846.5,4.923]
[1746336554842,5.41467792,1846.9,1846.5,8.48572676]
[1746336555043,5.46874767,1846.9,1846.5,8.48572676]
[1746336555239,5.46872314,1846.9,1846.5,8.48572676]
[1746336555439,5.46872314,1846.9,1846.5,13.90125617]
[1746336555755,0.05406975,1846.9,1846.5,15.91316614]
[1746336556128,5.46856642,1846.9,1846.5,15.91316614]
[1746336556530,0.05406975,1846.9,1846.6,0.8024]
[1746336556725,5.46814438,1847.1,1846.6,6.21756993]
[1746336556945,5.41418752,1847.0,1846.6,6.21756993]
[1746336557157,5.41418752,1847.0,1846.6,8.03138841]
[1746336557854,0.05406975,1847.1,1847.0,5.41418516]
[1746336558159,5.46681023,1847.5,1847.1,6.21502407]
[1746336558479,0.54668102,1847.4,1847.1,6.21502407]
[1746336558755,5.46681023,1847.5,1847.1,6.21502407]
[1746336558951,0.05406975,1847.5,1847.1,6.21502407]
[1746336559329,3.0,1847.6,1847.1,6.21502407]
[1746336559536,5.4127326,1847.5,1847.1,0.8013]
[1746336560764,10.82572374,1847.5,1847.1,0.8013]
[1746336561060,10.82572374,1847.5,1847.1,1.19832963]
[1746336561269,5.41304516,1847.4,1847.1,1.19832963]
[1746336563970,5.41335762,1847.3,1847.1,1.19832963]
[1746336564474,5.41335762,1847.3,1847.2,0.17248565]
[1746336565067,5.41321574,1847.4,1847.2,0.17248565]
[1746336565570,5.4133059,1847.3,1847.2,0.17248565]
[1746336569440,5.41284304,1847.5,1847.2,1.75459411]
[1746336569643,5.41297617,1847.5,1847.2,2.05529962]
[1746336569880,0.8149,1848.3,1847.5,0.8264]
[1746336570031,5.41073032,1848.2,1847.8,1.58210846]
[1746336570231,5.41073032,1848.2,1847.9,0.16896391]
[1746336570436,5.41073032,1848.2,1847.8,1.58210846]
[1746336570437,5.4111026,1848.1,1847.8,1.58210846]
[1746336570640,5.41110028,1848.1,1847.9,0.16821504]
[1746336570942,5.41066984,1848.2,1847.8,1.58210846]
[1746336571139,5.41101425,1848.1,1847.9,0.16821504]
[1746336571378,5.41101425,1848.1,1847.8,1.58210846]
[1746336571578,5.41101425,1848.1,1848.0,0.16773541]
[1746336572174,5.41101425,1848.1,1847.8,1.58210846]
[1746336572362,5.41142181,1848.0,1847.7,0.8264]
[1746336572762,5.41129266,1848.0,1847.7,1.22444264]
[1746336572965,5.41113222,1848.1,1847.8,0.05411282]
[1746336573366,5.41113222,1848.1,1847.7,2.04632405]
[1746336573554,5.41137059,1848.0,1847.7,2.04632405]
[1746336573953,5.412134,1847.7,1847.6,4.84]
[1746336574377,5.41242693,1847.6,1847.5,0.795]
[1746336575546,5.41289965,1847.5,1847.3,4.76170488]
[1746336577491,5.41289965,1847.5,1847.3,1.19897812]
[1746336577854,5.41301288,1847.4,1847.3,1.19897812]
[1746336578055,5.41301288,1847.4,1847.3,1.99105733]
[1746336578354,5.41292651,1847.5,1847.3,1.99105733]
[1746336578556,5.41301288,1847.4,1847.3,1.19897812]
[1746336578757,5.41301288,1847.4,1847.3,0.795]
[1746336579377,5.41301288,1847.4,1847.3,0.96352639]
[1746336580691,5.41274884,1847.5,1847.3,0.96352639]
[1746336581014,5.41301288,1847.4,1847.3,0.96352639]
[1746336583366,5.41301288,1847.4,1846.8,4.839]
[1746336583367,5.41447831,1846.9,1846.8,4.839]
[1746336583571,5.41447831,1846.9,1846.8,0.15886859]
[1746336584301,5.41477149,1846.8,1846.7,3.56272676]
[1746336584461,6.27984124,1846.8,1846.7,3.56272676]
[1746336587312,6.27984124,1846.8,1846.4,4.839]
[1746336587313,5.41565123,1846.5,1846.4,4.839]
[1746336587604,5.41594454,1846.4,1846.3,0.795]
[1746336588289,5.41682465,1846.1,1846.0,4.818]
[1746336588501,5.41682465,1846.1,1845.9,2.38650846]
[1746336588502,5.41711809,1846.0,1845.9,2.38650846]
[1746336589031,5.41711809,1846.0,1845.9,0.8044]
[1746336589167,5.41770506,1845.8,1845.7,4.36712676]
[1746336589369,5.41770506,1845.8,1845.7,5.44385028]
[1746336589806,3.7562,1846.3,1845.7,5.44385028]
[1746336589962,5.41740669,1846.0,1845.8,1.58210846]
[1746336590163,5.41741156,1845.9,1845.8,1.58210846]
[1746336590362,5.41741156,1845.9,1845.8,2.28470433]
[1746336591203,5.41741156,1845.9,1845.8,2.43513883]
[1746336592393,5.41741156,1845.9,1845.8,0.1504345]
[1746336592609,5.47148131,1845.9,1845.8,0.1504345]
[1746336595307,5.41741156,1845.9,1845.8,0.1504345]
[1746336596306,5.41799859,1845.7,1845.6,6.40010846]
[1746336596598,5.41799859,1845.7,1845.6,1.7423666]
[1746336598104,5.41799859,1845.7,1845.6,0.16025814]
[1746336600124,5.41887937,1845.4,1845.3,0.7907]
[1746336600996,5.41917303,1845.3,1845.2,5.6107]
[1746336601620,5.41976044,1845.1,1845.0,1.48500658]
[1746336601797,5.41976044,1845.1,1845.0,1.07394232]
[1746336602133,5.41976044,1845.1,1845.0,0.7907]
[1746336602727,5.41931973,1845.3,1845.0,2.37280846]
[1746336603085,5.41942258,1845.3,1845.0,2.37280846]
[1746336603412,5.41948231,1845.2,1845.0,2.77020851]
[1746336603722,5.41972021,1845.2,1845.0,3.04722936]
[1746336603939,5.41929391,1845.3,1845.0,3.04722936]
[1746336604091,5.41966781,1845.2,1845.0,3.04722936]
[1746336604599,5.41880692,1845.5,1845.0,8.46706921]
[1746336604798,5.41792417,1845.8,1845.5,0.7866]
[1746336605020,5.41792417,1845.8,1845.6,1.63628554]
[1746336605530,5.41758915,1845.9,1845.6,1.63628554]
[1746336605731,5.41728382,1846.0,1845.8,1.58210846]
[1746336606215,11.00608275,1846.5,1845.8,2.03628589]